bitfinex/quotes_BTCUSD_20241110
["timestamp","ask_amount","ask_price","bid_price","bid_amount"]
[1731265172725,0.18613078,80512.0,80497.0,0.1]
[1731265173542,0.18613078,80502.0,80495.0,0.000842]
[1731265173765,0.18613078,80512.0,80496.0,0.0232067]
[1731265173980,0.18613078,80512.0,80495.0,0.000842]
[1731265173981,0.31207299,80512.0,80497.0,0.0232067]
[1731265174194,0.31207299,80512.0,80495.0,0.000842]
[1731265174195,1.5,80511.0,80495.0,0.000842]
[1731265174408,0.078,80503.0,80495.0,0.000842]
[1731265174784,0.03842081,80502.0,80495.0,0.000842]
[1731265174938,1.5,80501.0,80495.0,0.000842]
[1731265175399,0.0477,80506.0,80495.0,0.000842]
[1731265175600,0.03841495,80505.0,80495.0,0.000842]
[1731265175772,1.5,80504.0,80495.0,0.000842]
[1731265175981,1.5,80504.0,80497.0,0.12770083]
[1731265176183,1.5,80504.0,80495.0,0.000842]
[1731265176184,0.18613078,80503.0,80495.0,0.000842]
[1731265176583,0.078,80509.0,80495.0,0.000842]
[1731265176833,1.53840514,80508.0,80495.0,0.000842]
[1731265177038,0.03840514,80507.0,80495.0,0.000842]
[1731265177669,1.5,80508.0,80495.0,0.000842]
[1731265178028,0.12594221,80507.0,80495.0,0.000842]
[1731265178226,1.5,80508.0,80495.0,0.000842]
[1731265178404,0.03840486,80507.0,80495.0,0.000842]
[1731265178607,0.09345377,80509.0,80495.0,0.000842]
[1731265178789,0.03840355,80508.0,80495.0,0.000842]
[1731265178999,0.20091457,80508.0,80495.0,0.000842]
[1731265179211,0.03840355,80507.0,80495.0,0.000842]
[1731265181104,0.18613078,80501.0,80495.0,0.000842]
[1731265181290,0.12594221,80506.0,80495.0,0.000842]
[1731265181451,0.03840355,80505.0,80495.0,0.000842]
[1731265181779,0.16434576,80505.0,80495.0,0.000842]
[1731265182002,0.03840355,80504.0,80500.0,0.12770083]
[1731265182202,0.18820998,80511.0,80495.0,0.000842]
[1731265182406,0.03839758,80510.0,80495.0,0.000842]
[1731265183789,0.18613078,80511.0,80495.0,0.000842]
[1731265183997,0.03839467,80510.0,80495.0,0.000842]
[1731265184694,0.18613078,80511.0,80488.0,0.001404]
[1731265184695,0.1257,80501.0,80488.0,0.001404]
[1731265184928,0.005,80480.0,80450.0,0.005]
[1731265185158,0.005,80478.0,80451.0,0.06527619]
[1731265185341,0.005,80475.0,80467.0,0.12770083]
[1731265185594,0.078,80490.0,80473.0,0.12770083]
[1731265185595,0.005,80487.0,80473.0,0.12770083]
[1731265185786,0.005,80490.0,80468.0,0.0438938]
[1731265186107,0.078,80499.0,80475.0,0.12770083]
[1731265186108,0.18613078,80489.0,80475.0,0.12770083]
[1731265186281,0.18613078,80489.0,80476.0,0.12594221]
[1731265186752,0.005,80482.0,80461.0,0.01492589]
[1731265186949,0.005,80482.0,80465.0,0.18613078]
[1731265187139,0.005,80482.0,80465.0,0.12594221]
[1731265187346,0.18613078,80480.0,80465.0,0.12594221]
[1731265187509,0.18613078,80487.0,80478.0,0.12770083]
[1731265187701,0.18613078,80487.0,80479.0,0.0818]
[1731265188333,0.09260032,80502.0,80479.0,0.0818]
[1731265188511,0.18613078,80490.0,80479.0,0.0818]
[1731265188709,0.09260032,80502.0,80479.0,0.0818]
[1731265188914,0.18613078,80492.0,80479.0,0.0818]
[1731265189249,0.09260032,80502.0,80479.0,0.0818]
[1731265189462,0.18613078,80492.0,80479.0,0.0818]
[1731265189806,0.01533876,80502.0,80480.0,0.31207299]
[1731265190007,0.1,80505.0,80480.0,0.12594221]
[1731265190008,0.18613078,80499.0,80480.0,0.12594221]
[1731265190698,0.18613078,80499.0,80479.0,0.0818]
[1731265195647,0.21628027,80499.0,80479.0,0.0818]
[1731265195926,0.18613078,80499.0,80479.0,0.0818]
[1731265198350,0.03839743,80498.0,80479.0,0.0818]
[1731265198554,0.18613078,80499.0,80479.0,0.0818]
[1731265199171,0.18781478,80499.0,80479.0,0.0818]
[1731265199382,0.18781478,80499.0,80480.0,0.31207299]
[1731265199383,0.001684,80499.0,80480.0,0.31207299]
[1731265199577,0.001684,80499.0,80480.0,0.12594221]
[1731265199890,0.001684,80499.0,80485.0,0.12770083]
[1731265200107,0.001684,80499.0,80493.0,0.1]
[1731265200328,0.001684,80499.0,80498.0,0.36000083]
[1731265200530,0.001684,80499.0,80498.0,0.48594304]
[1731265201180,0.001684,80499.0,80498.0,0.35824221]
[1731265201356,0.001684,80499.0,80498.0,0.35324221]
[1731265201582,0.001684,80499.0,80498.0,0.30644221]
[1731265202271,0.001684,80499.0,80498.0,0.33485974]
[1731265202461,0.001684,80499.0,80498.0,0.30644221]
[1731265202616,0.001188,80499.0,80498.0,0.30644221]
[1731265204846,0.001188,80499.0,80482.0,0.005]
[1731265205039,0.001188,80499.0,80483.0,0.12594221]
[1731265206273,0.001188,80499.0,80484.0,0.22770083]
[1731265206481,0.001188,80499.0,80498.0,0.0751]
[1731265206692,0.001188,80499.0,80498.0,0.20104221]
[1731265207120,0.001188,80499.0,80498.0,0.0751]
[1731265207340,0.001188,80499.0,80491.0,0.0762]
[1731265207551,0.001188,80499.0,80493.0,0.1]
[1731265207769,0.001188,80499.0,80479.0,0.09552228]
[1731265207770,0.18613078,80496.0,80479.0,0.09552228]
[1731265207979,0.18613078,80496.0,80473.0,0.18613078]
[1731265208189,0.001188,80499.0,80474.0,0.12594221]
[1731265208374,0.001188,80499.0,80483.0,0.0762]
[1731265208645,0.18613078,80495.0,80484.0,0.12594221]
[1731265209275,0.001188,80499.0,80484.0,0.12594221]
[1731265209907,0.01992772,80499.0,80486.0,0.18613078]
[1731265210109,0.001188,80499.0,80487.0,0.25364304]
[1731265210906,0.001188,80499.0,80487.0,0.12594221]
[1731265211362,0.001188,80499.0,80490.0,0.18613078]
[1731265211570,0.001188,80499.0,80491.0,0.12594221]
[1731265211777,0.001188,80499.0,80494.0,0.12770083]
[1731265211981,0.001188,80499.0,80495.0,0.12594221]
[1731265214118,0.50032092,80502.0,80495.0,0.12594221]
[1731265214556,0.18613078,80498.0,80495.0,0.12594221]
[1731265214737,0.50032092,80502.0,80495.0,0.12594221]
[1731265216483,0.50032092,80502.0,80501.0,0.124222]
[1731265217973,0.64926313,80502.0,80501.0,0.124222]
[1731265218607,0.64926313,80502.0,80485.0,0.18613078]
[1731265218608,0.023,80499.0,80485.0,0.18613078]
[1731265218783,0.023,80499.0,80483.0,0.000841]
[1731265218784,0.12594221,80498.0,80483.0,0.000841]
[1731265218982,0.023,80495.0,80483.0,0.000841]
[1731265219204,0.03840099,80494.0,80483.0,0.000841]
[1731265219402,0.023,80495.0,80483.0,0.000841]
[1731265219829,0.023,80495.0,80487.0,0.0028]
[1731265219830,0.18613078,80490.0,80487.0,0.0028]
[1731265220054,0.023,80488.0,80487.0,0.0028]
[1731265220207,0.18732845,80488.0,80487.0,0.0028]
[1731265220413,0.14894221,80488.0,80487.0,0.0028]
[1731265220576,0.03838671,80488.0,80487.0,0.0028]
[1731265220779,0.1,80508.0,80487.0,0.0028]
[1731265221028,0.18613078,80501.0,80488.0,0.03193024]
[1731265221272,0.18613078,80501.0,80487.0,0.13050083]
[1731265221478,0.18613078,80501.0,80487.0,0.14967095]
[1731265221694,0.18613078,80501.0,80487.0,0.02197012]
[1731265221925,0.0499,80488.0,80487.0,0.0028]
[1731265223818,1.5,80495.0,80487.0,0.0028]
[1731265224025,0.0828,80496.0,80487.0,0.0028]
[1731265225108,0.023,80495.0,80487.0,0.0028]
[1731265225653,0.0828,80496.0,80487.0,0.0028]
[1731265225989,0.023,80495.0,80487.0,0.0028]
[1731265227328,0.023,80489.0,80487.0,0.0028]
[1731265227521,0.14894221,80488.0,80487.0,0.0028]
[1731265231450,0.02364793,80495.0,80487.0,0.0028]
[1731265231451,0.023,80494.0,80487.0,0.0028]
[1731265231663,0.023,80492.0,80487.0,0.0028]
[1731265231879,0.023,80490.0,80487.0,0.0028]
[1731265232086,0.023,80488.0,80487.0,0.0028]
[1731265232336,0.0828,80496.0,80487.0,0.0028]
[1731265232535,0.18613078,80499.0,80487.0,0.0028]
[1731265232967,0.35403991,80502.0,80487.0,0.0028]
[1731265232968,0.33470292,80502.0,80487.0,0.0028]
[1731265233168,0.18613078,80501.0,80487.0,0.0028]
[1731265233387,0.33470292,80502.0,80487.0,0.0028]
[1731265233649,0.33420692,80502.0,80492.0,0.12770083]
[1731265233854,0.33420692,80502.0,80501.0,0.12770083]
[1731265234293,0.33420692,80502.0,80501.0,0.25364304]
[1731265235197,0.33420692,80502.0,80501.0,0.12594221]
[1731265235871,0.33420692,80502.0,80496.0,0.12770083]
[1731265236088,0.33420692,80502.0,80497.0,0.1]
[1731265236869,0.023,80499.0,80483.0,0.000841]
[1731265237089,0.12594221,80498.0,80483.0,0.000841]
[1731265237292,0.023,80497.0,80483.0,0.000841]
[1731265237461,0.12594221,80496.0,80483.0,0.000841]
[1731265237700,0.023,80495.0,80483.0,0.000841]
[1731265237919,0.12594221,80494.0,80483.0,0.000841]
[1731265238124,0.43002868,80502.0,80483.0,0.000841]
[1731265238302,0.18613078,80498.0,80483.0,0.000841]
[1731265238515,0.023,80497.0,80483.0,0.000841]
[1731265239530,0.18613078,80489.0,80483.0,0.000841]
[1731265239685,0.14894221,80488.0,80483.0,0.000841]
[1731265241543,0.1675857,80488.0,80483.0,0.000841]
[1731265243588,0.218311,80488.0,80483.0,0.000841]
[1731265243805,0.265511,80488.0,80483.0,0.000841]
[1731265244800,0.30382725,80488.0,80483.0,0.000841]
[1731265245001,0.265511,80488.0,80483.0,0.000841]
[1731265247684,0.345611,80488.0,80487.0,0.003641]
[1731265250008,0.445611,80488.0,80487.0,0.003641]
[1731265250218,0.52182797,80488.0,80487.0,0.003641]
[1731265250428,0.4839108,80488.0,80487.0,0.003641]
[1731265251553,0.394411,80488.0,80487.0,0.003641]
[1731265252020,0.401411,80488.0,80487.0,0.003641]
[1731265252340,0.23770083,80484.0,80483.0,0.000841]
[1731265252559,0.28076791,80484.0,80483.0,0.000841]
[1731265253153,0.58004306,80484.0,80483.0,0.000841]
[1731265253354,0.58004306,80484.0,80466.0,0.18613078]
[1731265253355,0.005,80468.0,80466.0,0.18613078]
[1731265253567,0.023,80467.0,80456.0,0.18613078]
[1731265253918,0.023,80467.0,80447.0,0.12770083]
[1731265254542,0.18613078,80464.0,80447.0,0.12770083]
[1731265254886,0.14894221,80463.0,80447.0,0.12770083]
[1731265255159,0.00207086,80468.0,80457.0,0.12770083]
[1731265255399,0.31207299,80467.0,80457.0,0.12770083]
[1731265255623,0.00207086,80468.0,80463.0,0.12770083]
[1731265255799,0.00207086,80468.0,80447.0,0.01929281]
[1731265255800,0.18613078,80467.0,80453.0,0.12770083]
[1731265256041,0.1,80474.0,80453.0,0.12770083]
[1731265256269,0.18613078,80466.0,80447.0,0.14699364]
[1731265256468,0.12594221,80473.0,80447.0,0.27293585]
[1731265256469,0.18613078,80472.0,80447.0,0.27293585]
[1731265256690,0.31207299,80472.0,80454.0,0.12770083]
[1731265257429,0.31207299,80472.0,80460.0,0.12770083]
[1731265258728,0.11879247,80474.0,80460.0,0.12770083]
[1731265258729,0.01879247,80474.0,80460.0,0.12770083]
[1731265258933,0.1,80480.0,80460.0,0.12770083]
[1731265259176,0.1,80480.0,80461.0,0.0826]
[1731265259177,0.18613078,80472.0,80461.0,0.0826]
[1731265260190,0.14894221,80479.0,80461.0,0.0826]
[1731265260191,0.12594221,80479.0,80461.0,0.0826]
[1731265260516,0.18613078,80472.0,80461.0,0.0826]
[1731265260728,0.12594221,80479.0,80461.0,0.0826]
[1731265261127,0.18613078,80472.0,80461.0,0.0826]
[1731265261527,0.12594221,80479.0,80461.0,0.0826]
[1731265261739,0.18613078,80472.0,80461.0,0.0826]
[1731265261905,0.12594221,80479.0,80461.0,0.0826]
[1731265266418,0.18290819,80479.0,80457.0,0.000841]
[1731265266623,0.18290819,80479.0,80458.0,0.02320654]
[1731265266822,0.18290819,80479.0,80459.0,0.02320654]
[1731265267045,0.18290819,80479.0,80460.0,0.02320654]
[1731265267243,0.12594221,80479.0,80461.0,0.02320654]
[1731265267457,0.12594221,80479.0,80457.0,0.000841]
[1731265267458,0.12594221,80479.0,80462.0,0.02320654]
[1731265267655,0.12594221,80479.0,80463.0,0.02320654]
[1731265267933,0.12594221,80479.0,80464.0,0.02320654]
[1731265268155,0.12594221,80479.0,80457.0,0.000841]
[1731265268156,0.12594221,80479.0,80465.0,0.02320654]
[1731265268380,0.12594221,80479.0,80466.0,0.02320654]
[1731265268589,0.11921481,80480.0,80468.0,0.12770083]
[1731265268590,0.01921481,80480.0,80468.0,0.12770083]
[1731265268795,0.18613078,80479.0,80469.0,0.13704818]
[1731265268923,0.18613078,80479.0,80470.0,0.02320654]
[1731265269138,0.18613078,80479.0,80471.0,0.02320654]
[1731265269414,0.18613078,80479.0,80472.0,0.02320654]
[1731265269614,0.18613078,80479.0,80472.0,0.02322562]
[1731265269816,0.18613078,80479.0,80473.0,0.02322562]
[1731265269952,0.023,80478.0,80473.0,0.02322562]
[1731265270161,0.023,80476.0,80474.0,0.02322562]
[1731265270404,0.14894221,80476.0,80475.0,0.02322562]
[1731265270967,0.14894221,80476.0,80462.0,0.0463]
[1731265271195,0.14894221,80476.0,80463.0,0.06039774]
[1731265271395,0.023,80474.0,80464.0,0.06039774]
[1731265271613,0.023,80474.0,80465.0,0.06039774]
[1731265271809,0.023,80474.0,80466.0,0.06039774]
[1731265272004,0.023,80472.0,80467.0,0.0232299]
[1731265272214,0.023,80472.0,80457.0,0.000841]
[1731265272215,0.023,80470.0,80468.0,0.023239]
[1731265272422,0.023,80470.0,80457.0,0.000841]
[1731265272423,0.14894221,80470.0,80457.0,0.000841]
[1731265272613,0.14894221,80470.0,80458.0,0.06041821]
[1731265272849,0.14894221,80470.0,80459.0,0.06041821]
[1731265273094,0.14894221,80470.0,80457.0,0.000841]
[1731265273095,0.14894221,80470.0,80460.0,0.02323777]
[1731265273255,0.14894221,80470.0,80460.0,0.06041867]
[1731265273459,0.14894221,80470.0,80461.0,0.06041867]
[1731265273793,0.14894221,80470.0,80462.0,0.02323777]
[1731265273962,0.14894221,80470.0,80463.0,0.02323777]
[1731265274210,0.16759714,80470.0,80464.0,0.02323777]
[1731265274416,0.01865493,80470.0,80465.0,0.02323777]
[1731265274572,0.01865493,80470.0,80466.0,0.02323777]
[1731265274774,0.18613078,80480.0,80467.0,0.02323777]
[1731265274775,0.023,80479.0,80467.0,0.02323777]
[1731265275000,0.14894221,80479.0,80468.0,0.02323777]
[1731265275222,0.14894221,80479.0,80469.0,0.02323777]
[1731265275427,0.14894221,80479.0,80470.0,0.02323777]
[1731265275636,0.023,80477.0,80471.0,0.02323777]
[1731265275860,0.023,80477.0,80472.0,0.02323777]
[1731265276080,0.023,80478.0,80473.0,0.02323777]
[1731265276273,0.023,80478.0,80474.0,0.02323777]
[1731265276473,0.023,80478.0,80457.0,0.000841]
[1731265276704,0.023,80476.0,80475.0,0.02323873]
[1731265277135,0.023,80482.0,80475.0,0.02323873]
[1731265277352,0.023,80479.0,80476.0,0.02323873]
[1731265277534,0.023,80479.0,80477.0,0.02323873]
[1731265277737,0.023,80482.0,80478.0,0.02323873]
[1731265277962,0.18613078,80480.0,80479.0,0.02323873]
[1731265278142,0.023,80488.0,80479.0,0.02323873]
[1731265278350,0.023,80486.0,80480.0,0.02323873]
[1731265278564,0.023,80484.0,80481.0,0.02323873]
[1731265278705,0.023,80482.0,80469.0,0.0832]
[1731265278900,0.023,80482.0,80470.0,0.06041246]
[1731265279158,0.023,80484.0,80471.0,0.06041246]
[1731265279375,0.12594221,80485.0,80472.0,0.02323556]
[1731265279376,0.023,80482.0,80472.0,0.02323556]
[1731265279578,0.023,80482.0,80473.0,0.02323556]
[1731265279787,0.023,80484.0,80474.0,0.02323556]
[1731265280004,0.023,80482.0,80474.0,0.02323556]
[1731265280209,0.023,80480.0,80475.0,0.02323556]
[1731265280426,0.12897005,80489.0,80476.0,0.02323556]
[1731265280715,0.1643306,80488.0,80477.0,0.02323556]
[1731265280919,0.03838839,80487.0,80469.0,0.0832]
[1731265281090,0.12594221,80486.0,80470.0,0.02323525]
[1731265281299,0.18613078,80485.0,80471.0,0.02323525]
[1731265281554,0.12594221,80484.0,80472.0,0.02323525]
[1731265281783,0.12594221,80484.0,80473.0,0.02323525]
[1731265282028,0.12594221,80484.0,80474.0,0.02323525]
[1731265282233,0.12594221,80484.0,80475.0,0.02323525]
[1731265282463,0.12594221,80484.0,80476.0,0.02323525]
[1731265282650,0.12594221,80484.0,80477.0,0.02323525]
[1731265282933,0.12762621,80484.0,80478.0,0.02323525]
[1731265283179,0.12762621,80484.0,80479.0,0.02323525]
[1731265283404,0.001684,80484.0,80479.0,0.02323525]
[1731265283616,0.001684,80484.0,80478.0,0.12770083]
[1731265283617,0.001684,80484.0,80480.0,0.14359129]
[1731265283823,0.001684,80484.0,80481.0,0.06039129]
[1731265284016,0.001684,80484.0,80482.0,0.06039129]
[1731265284223,0.001684,80484.0,80480.0,0.0832]
[1731265284224,0.001684,80484.0,80483.0,0.06039129]
[1731265284460,0.001684,80484.0,80483.0,0.1863335]
[1731265284658,0.001684,80484.0,80483.0,0.3232335]
[1731265284791,0.001684,80484.0,80483.0,0.4332335]
[1731265284989,1.49,80492.0,80491.0,0.005]
[1731265285237,1.49,80492.0,80491.0,0.71163516]
[1731265285238,1.05789159,80492.0,80491.0,0.71163516]
[1731265285400,0.92979159,80492.0,80491.0,0.66052588]
[1731265285825,0.92929559,80492.0,80491.0,0.49482505]
[1731265286027,0.9291704,80492.0,80491.0,0.34612505]
[1731265286419,0.9291704,80492.0,80491.0,0.35540657]
[1731265286661,0.9291704,80492.0,80491.0,0.41573653]
[1731265286859,0.9291704,80492.0,80491.0,0.40645501]
[1731265287298,0.9291704,80492.0,80491.0,0.36932888]
[1731265287517,0.9291704,80492.0,80491.0,0.57882588]
[1731265287678,0.9291704,80492.0,80491.0,0.70583543]
[1731265287858,0.18613078,80500.0,80499.0,0.005]
[1731265288067,0.18613078,80500.0,80499.0,0.35864304]
[1731265288277,0.0995081,80512.0,80500.0,0.1]
[1731265288477,0.0995081,80512.0,80511.0,0.20980083]
[1731265288678,0.0995081,80512.0,80511.0,0.33574304]
[1731265288880,0.18613078,80521.0,80511.0,0.33574304]
[1731265289158,0.18613078,80521.0,80518.0,0.12770083]
[1731265289377,0.001682,80540.0,80519.0,0.12594221]
[1731265289621,0.18613078,80525.0,80519.0,0.12594221]
[1731265289811,0.001682,80540.0,80523.0,0.12770083]
[1731265290544,0.01920841,80533.0,80523.0,0.12770083]
[1731265291280,0.001682,80540.0,80529.0,0.12770083]
[1731265291956,1e-06,80532.0,80523.0,0.25364304]
[1731265292159,0.001682,80540.0,80529.0,0.12770083]
[1731265292160,1e-06,80540.0,80529.0,0.12770083]
[1731265292501,1e-06,80540.0,80520.0,0.13270083]
[1731265292502,0.18613078,80539.0,80535.0,0.12770083]
[1731265292743,0.13670219,80539.0,80535.0,0.12770083]
[1731265292951,1e-06,80540.0,80531.0,0.0793]
[1731265294108,0.18613078,80539.0,80534.0,0.12770083]
[1731265294445,0.18613078,80539.0,80531.0,0.0793]
[1731265294770,1e-06,80540.0,80531.0,0.0793]
[1731265294912,1e-06,80540.0,80531.0,0.0982841]
[1731265295926,0.00045909,80543.0,80531.0,0.0982841]
[1731265297585,0.00045909,80543.0,80539.0,0.12770083]
[1731265297792,0.00045909,80543.0,80540.0,0.12594221]
[1731265298367,0.00045909,80543.0,80542.0,0.12770083]
[1731265298605,0.00045909,80543.0,80542.0,0.25364304]
[1731265298811,0.00045909,80543.0,80542.0,0.12594221]
[1731265299794,0.00045909,80543.0,80542.0,0.1445134]
[1731265300016,0.00045909,80543.0,80542.0,0.2044049]
[1731265300228,0.00045909,80543.0,80542.0,0.2094049]
[1731265301050,0.00045909,80543.0,80542.0,0.25533094]
[1731265301261,0.00045909,80543.0,80542.0,0.46403177]
[1731265301469,0.00045909,80543.0,80542.0,0.33633094]
[1731265302140,0.00133129,80553.0,80545.0,0.005]
[1731265302331,0.00133129,80553.0,80552.0,0.13270083]
[1731265302559,0.13949607,80558.0,80557.0,0.124135]
[1731265302767,0.000704,80560.0,80557.0,0.124135]
[1731265302768,0.000704,80560.0,80559.0,0.124132]
[1731265302981,0.000704,80560.0,80559.0,0.2868893]
[1731265303633,0.09898998,80567.0,80559.0,0.1627573]
[1731265303839,0.0012,80578.0,80564.0,0.12770083]
[1731265304214,0.0012,80578.0,80565.0,0.03681509]
[1731265304522,0.0012,80578.0,80566.0,0.03681509]
[1731265304957,0.0012,80578.0,80567.0,0.03681509]
[1731265305167,0.0012,80578.0,80568.0,0.03681509]
[1731265305490,0.01962502,80573.0,80568.0,0.03681509]
[1731265305694,0.000704,80573.0,80565.0,0.12770083]
[1731265305896,0.000704,80573.0,80566.0,0.03658089]
[1731265306118,0.000704,80573.0,80567.0,0.03658089]
[1731265306318,0.000704,80573.0,80568.0,0.03658089]
[1731265306953,0.000704,80573.0,80568.0,0.03657654]
[1731265309251,0.000704,80573.0,80564.0,0.01883603]
[1731265309483,0.000704,80573.0,80565.0,0.03659026]
[1731265309670,0.000704,80573.0,80566.0,0.03659026]
[1731265310006,0.000704,80573.0,80567.0,0.03659026]
[1731265310216,0.000704,80573.0,80568.0,0.03659026]
[1731265310421,0.000704,80573.0,80560.0,0.1450727]
[1731265310572,0.000704,80573.0,80561.0,0.03664906]
[1731265310795,0.000704,80573.0,80562.0,0.03664906]
[1731265311146,0.000704,80573.0,80563.0,0.03664906]
[1731265311318,0.000704,80573.0,80564.0,0.03664906]
[1731265311529,0.000704,80573.0,80565.0,0.03664906]
[1731265311739,0.000704,80573.0,80566.0,0.03664906]
[1731265311937,0.000704,80573.0,80567.0,0.03664906]
[1731265312149,0.000704,80573.0,80568.0,0.03664906]
[1731265313009,0.000704,80573.0,80561.0,0.12594221]
[1731265313010,0.000704,80573.0,80569.0,0.03664906]
[1731265313136,0.000704,80573.0,80554.0,0.18613078]
[1731265313337,0.1236,80572.0,80555.0,0.03677722]
[1731265313552,0.1236,80572.0,80556.0,0.03677722]
[1731265313759,0.1236,80572.0,80557.0,0.03677722]
[1731265314059,0.1236,80572.0,80558.0,0.18613078]
[1731265314281,0.1236,80572.0,80558.0,0.03686356]
[1731265314511,0.1236,80572.0,80549.0,0.1]
[1731265314719,0.1236,80572.0,80554.0,0.18613078]
[1731265315085,0.1236,80572.0,80555.0,0.12594221]
[1731265315554,0.000704,80573.0,80561.0,0.12770083]
[1731265315911,0.18613078,80576.0,80562.0,0.12594221]
[1731265316550,0.18613078,80576.0,80563.0,0.0092691]
[1731265316749,0.18613078,80576.0,80563.0,0.00926908]
[1731265317033,0.18613078,80576.0,80564.0,0.00926908]
[1731265317186,0.18613078,80576.0,80565.0,0.00926908]
[1731265317187,0.24954221,80575.0,80565.0,0.00926908]
[1731265317389,0.24954221,80575.0,80556.0,0.18613078]
[1731265317596,0.1236,80575.0,80557.0,0.00926974]
[1731265317763,0.1236,80575.0,80563.0,0.12770083]
[1731265317971,0.0012,80578.0,80563.0,0.25364304]
[1731265318297,0.001682,80576.0,80563.0,0.25364304]
[1731265318457,0.001682,80576.0,80564.0,0.00926964]
[1731265318692,0.001682,80576.0,80565.0,0.00926964]
[1731265318904,0.001682,80576.0,80563.0,0.25364304]
[1731265318905,0.001682,80576.0,80566.0,0.00926989]
[1731265319115,0.001682,80576.0,80563.0,0.12594221]
[1731265319319,0.001682,80576.0,80564.0,0.00926997]
[1731265319601,0.001682,80576.0,80565.0,0.00926997]
[1731265319829,0.001682,80576.0,80565.0,0.00927026]
[1731265319984,0.001482,80576.0,80565.0,0.00927026]
[1731265320300,0.001482,80576.0,80566.0,0.00927026]
[1731265320463,0.001482,80576.0,80567.0,0.00927026]
[1731265320887,0.001482,80576.0,80563.0,0.14493515]
[1731265321095,0.001482,80576.0,80564.0,0.07879691]
[1731265321274,0.001482,80576.0,80565.0,0.13521243]
[1731265321469,0.001482,80576.0,80566.0,0.00927022]
[1731265321672,0.001482,80576.0,80566.0,0.12594221]
[1731265321888,0.001482,80576.0,80567.0,0.00927044]
[1731265322089,0.001482,80576.0,80566.0,0.12594221]
[1731265322286,0.001482,80576.0,80567.0,0.00927027]
[1731265322525,0.001482,80576.0,80568.0,0.00927027]
[1731265322701,0.001482,80576.0,80566.0,0.12594221]
[1731265322904,0.001482,80576.0,80567.0,0.00927017]
[1731265323109,0.001482,80576.0,80566.0,0.12594221]
[1731265323328,0.001482,80576.0,80567.0,0.00927042]
[1731265323601,0.001482,80576.0,80563.0,0.01899294]
[1731265323602,0.18613078,80574.0,80563.0,0.01899294]
[1731265323768,0.001482,80576.0,80564.0,0.00927067]
[1731265323935,0.18613078,80575.0,80565.0,0.00927067]
[1731265324137,0.18613078,80575.0,80566.0,0.00927067]
[1731265324356,0.18613078,80575.0,80567.0,0.00927067]
[1731265324562,0.18613078,80575.0,80563.0,0.12594221]
[1731265324784,0.001482,80576.0,80564.0,0.00927127]
[1731265325001,0.1236,80573.0,80562.0,0.000841]
[1731265325205,0.03834273,80572.0,80562.0,0.000841]
[1731265326171,0.03834273,80572.0,80563.0,0.18613078]
[1731265326385,0.03834273,80572.0,80562.0,0.000841]
[1731265327178,0.03834273,80571.0,80562.0,0.000841]
[1731265327396,0.03834273,80570.0,80562.0,0.000841]
[1731265327632,0.03835218,80575.0,80562.0,0.000841]
[1731265327842,0.03835253,80574.0,80562.0,0.000841]
[1731265328197,0.03835253,80574.0,80563.0,0.31207299]
[1731265328403,0.001482,80576.0,80568.0,0.12770083]
[1731265328620,0.001482,80576.0,80575.0,0.21060083]
[1731265328807,0.0012,80578.0,80575.0,0.33654304]
[1731265329161,0.0012,80578.0,80577.0,0.138]
[1731265329302,0.18613078,80595.0,80585.0,0.13770083]
[1731265329505,0.18613078,80595.0,80586.0,0.1]
[1731265329710,0.18613078,80595.0,80586.0,0.21054966]
[1731265329923,0.18613078,80595.0,80586.0,0.1]
[1731265330358,0.02411078,80610.0,80586.0,0.1]
[1731265330359,0.02411078,80610.0,80588.0,0.1]
[1731265330556,0.18613078,80599.0,80589.0,0.12594221]
[1731265330765,0.02411078,80610.0,80589.0,0.12594221]
[1731265330998,0.18613078,80602.0,80589.0,0.12594221]
[1731265331228,0.02411078,80610.0,80589.0,0.12594221]
[1731265331229,0.02411078,80610.0,80589.0,0.31207299]
[1731265331439,0.02411078,80610.0,80602.0,0.03701763]
[1731265332107,0.02411078,80610.0,80604.0,0.03701763]
[1731265332108,0.000703,80609.0,80604.0,0.03701763]
[1731265332255,0.000703,80609.0,80605.0,0.12594221]
[1731265332460,0.000703,80609.0,80606.0,0.1]
[1731265332678,0.000703,80609.0,80608.0,0.1]
[1731265332888,0.000703,80609.0,80608.0,0.22594221]
[1731265333264,0.000703,80609.0,80608.0,0.25394221]
[1731265333477,0.000703,80609.0,80608.0,0.26394221]
[1731265333931,0.000703,80609.0,80608.0,0.28691328]
[1731265334456,0.000703,80609.0,80608.0,0.24891328]
[1731265335457,0.002,80607.0,80597.0,0.03690808]
[1731265335675,0.002,80607.0,80581.0,0.18613078]
[1731265335676,0.25564304,80607.0,80599.0,0.18613078]
[1731265336092,0.25564304,80607.0,80590.0,0.18613078]
[1731265336093,0.002,80602.0,80590.0,0.18613078]
[1731265336295,0.002,80595.0,80590.0,0.18613078]
[1731265336529,0.12770083,80598.0,80581.0,0.18613078]
[1731265336530,0.0499,80597.0,80581.0,0.18613078]
[1731265336750,0.0821,80596.0,80581.0,0.18613078]
[1731265336967,0.37747109,80595.0,80581.0,0.18613078]
[1731265337166,0.37747109,80595.0,80572.0,0.18613078]
[1731265337167,0.0821,80585.0,80572.0,0.18613078]
[1731265339860,0.0499,80586.0,80573.0,0.12594221]
[1731265340070,0.18613078,80585.0,80569.0,0.02351991]
[1731265340239,0.002,80584.0,80569.0,0.02351991]
[1731265340438,0.0499,80586.0,80580.0,0.18613078]
[1731265340711,0.18613078,80585.0,80569.0,0.12594221]
[1731265340982,0.0499,80586.0,80572.0,0.18613078]
[1731265341220,0.001682,80585.0,80572.0,0.18613078]
[1731265342161,0.001682,80585.0,80573.0,0.12594221]
[1731265342589,0.001682,80585.0,80574.0,0.1]
[1731265342814,0.005,80612.0,80574.0,0.1]
[1731265342815,0.18613078,80598.0,80590.0,0.005]
[1731265343004,0.18613078,80607.0,80591.0,0.005]
[1731265343550,0.19134031,80615.0,80592.0,0.18613078]
[1731265343757,0.22594221,80614.0,80592.0,0.18613078]
[1731265343970,0.19134031,80607.0,80587.0,0.005]
[1731265344144,0.12594221,80606.0,80593.0,0.18613078]
[1731265345118,0.14927562,80606.0,80593.0,0.18613078]
[1731265345525,0.02333341,80606.0,80596.0,0.005]